[Event "4NCL Div 2 2024-25"]
[Site "England"]
[Date "2025.01.26"]
[Round "4.10"]
[White "Richardson, John R"]
[Black "Horton, Jamie A"]
[Result "1/2-1/2"]
[Annotator "TA"]
[ECO "D31"]
[WhiteElo "2287"]
[BlackElo "2163"]
[PlyCount "45"]
[EventDate "2024.11.23"]
[EventType "team-tourn"]
[EventCountry "ENG"]
[SourceTitle "playchess.com"]
[Source "ChessBase"]
[SourceQuality "1"]
[TimeControl "40/6000+30:3000+30"]

{[%evp 9,45,22,34,17,46,35,45,45,94,0,0,0,0,0,10,5,6,1,5,9,13,0,4,0,0,0,0,0,0,0,0,0,6,0,0,0,0,-7]} 1. d4 {[%emt 0:10:01]} d5 {[%emt 0:12:05]} 2. c4 {[%emt 0:00:05]} e6 {[%emt 0:00:30]} 3. Nc3 {[%emt 0:00:03]} a6 {[%emt 0:00:17]} 4. cxd5 {[%emt 0:00:37]} exd5 {[%emt 0:00:07]} 5. Qb3 {[%emt 0:00:03]} c5 {[%emt 0:17:22]} 6. Nxd5 {[%emt 0:04:39] Hoping for e4.} (6. Qxd5 cxd4 7. Qxd8+ Kxd8 $11) 6... Be6 {[%emt 0:08:45]} 7. e4 {[%emt 0:00:17]} (7. Qxb7 $2 Bxd5 $19 (7... Qxd5 $2 8. Qxd5 Bxd5 9. dxc5 $19) (7... Qxd5 $2 8. Qxd5 Bxd5 9. dxc5 $19)) 7... Nc6 {[%emt 0:04:46]} 8. Nf3 {[%emt 0:02:43] White is slightly better.} (8. Qxb7 $2 {is the wrong capture.} Bxd5 9. exd5 Na5 (9... Nxd4 10. Bf4 $16) 10. Bb5+ axb5 11. Qxb5+ Qd7 12. Qe2+ Be7 $17) 8... cxd4 {[%emt 0:32:50]} (8... Nge7 $1 $14 {might be stronger.}) 9. Be2 {[%emt 0:04:15] White is more active.} (9. Qxb7 Bxd5 10. exd5 Na5 11. Bb5+ axb5 12. Qxb5+ Qd7 13. Nxd4 Qxb5 14. Nxb5 Kd7 $17) (9. Ng5 $16) 9... Bb4+ $11 {[%emt 0:04:29] The position is equal.} 10. Kf1 {[%emt 0:09:19] [#] aiming for Ng5.} Nge7 {[%emt 0:02:35][%cal Bg8e7,Be7d5,Bd5e3][%mdl 32]} 11. Bg5 {[%emt 0:01:01][%cal Bc1g5,Bg5d8,Bd8b6,Bb6d4][%mdl 32]} Nxd5 {[%emt 0:01:16]} 12. Bxd8 {[%emt 0:10:55]} Ne3+ {[%emt 0:00:07]} 13. fxe3 {[%emt 0:00:28]} Bxb3 {[%emt 0:00:06]} 14. Bb6 {[%emt 0:00:11]} Bc2 {[%emt 0:00:30]} 15. Nxd4 {[%emt 0:00:20]} Bxe4 {[%emt 0:00:25]} 16. Bf3 {[%emt 0:01:07]} Bxf3 {[%emt 0:02:47]} 17. gxf3 {[%emt 0:00:12]} Nxd4 {[%emt 0:03:29]} 18. Bxd4 {[%emt 0:00:02]} O-O {[%emt 0:00:22]} 19. Rc1 {[%emt 0:10:07]} Rac8 {[%emt 0:02:10] Prevents Rc7} 20. Ke2 {[%emt 0:00:05]} f6 {[%emt 0:01:45]} 21. h3 {[%emt 0:01:13]} Kf7 {[%emt 0:01:35]} 22. a3 {[%emt 0:01:06]} Be7 {[%emt 0:03:53]} 23. Bb6 {[%emt 0:12:30] Weighted Error Value: White=0.09 (flawless) /Black=0.08 (flawless) .  Mistake:       	White=1     	Black=1      Inaccurate:     	---       	Black=1      OK:         	White=10    	Black=10     Best:        	---       	Black=1} 1/2-1/2

[Event "4NCL Div 2 2024-25"]
[Site "England"]
[Date "2025.01.26"]
[Round "4.11"]
[White "Maciol, Ryszard"]
[Black "Babu, Rahul"]
[Result "1-0"]
[Annotator "TA"]
[ECO "D10"]
[WhiteElo "2125"]
[BlackElo "2169"]
[PlyCount "115"]
[EventDate "2024.11.23"]
[EventType "team-tourn"]
[EventCountry "ENG"]
[SourceTitle "playchess.com"]
[Source "ChessBase"]
[SourceQuality "1"]
[TimeControl "40/6000+30:3000+30"]

{[%evp 10,114,40,29,31,47,69,54,62,46,86,86,77,93,78,83,168,68,64,50,63,64,46,50,64,61,62,18,25,13,62,56,144,145,159,165,137,138,145,103,94,48,55,77,106,56,60,64,133,124,118,128,118,104,905,905,937,922,975,849,857,796,853,884,844,839,813,886,866,833,896,885,1095,1123,1130,1130,1033,1119,1101,1072,1047,1049,5173,5097,4132,2874,12841,1464,29972,29975,29972,29975,29973,29977,29977,29978,29978,29979,29985,29983,29982,29983,29989,29990,29991,29990,29999]} 1. d4 {[%emt 0:10:17]} Nf6 {[%emt 0:10:04]} 2. c4 {[%emt 0:00:05]} c6 {[%emt 0:00:03]} 3. Nc3 {[%emt 0:00:55]} d5 {[%emt 0:00:03]} 4. cxd5 {[%emt 0:00:22]} cxd5 {[%emt 0:00:04]} 5. Bf4 {[%emt 0:01:56]} Qb6 {[%emt 0:14:19]} 6. e3 {[%emt 0:08:30]} Qxb2 {[%emt 0:01:12] D10: Slav Defence: 3 cxd5 (without early Nf3) and 3 Nc3.} 7. Bb5+ {[%emt 0:03:04]} Bd7 {[%emt 0:01:34]} 8. Bxd7+ {[%emt 0:00:35]} Nbxd7 {[%emt 0:00:07] White is slightly better.} 9. Nge2 {[%emt 0:00:04]} a6 {[%emt 0:14:52]} 10. Rb1 {[%emt 0:12:13]} Qa3 {[%emt 0:01:01]} 11. Rxb7 {[%emt 0:03:22]} e6 {[%emt 0:00:09]} 12. O-O {[%emt 0:02:11]} Rc8 {[%emt 0:02:11]} (12... Be7 $16) 13. Bc7 $146 {[%emt 0:11:36]} ({White should try} 13. Ra7 $1 $18) (13. Ra7 Bb4 14. Nb5 Qxa2 15. Nc7+ Rxc7 16. Bxc7 O-O 17. Qd3 a5 18. Rb1 Qa4 19. h3 {0-1 Zwardon,V (2470)-Piesik,P (2389) SVK-chT 2122 2021 (9.5)}) 13... Bb4 $1 $14 {[%emt 0:01:33]} 14. Qc2 {[%emt 0:13:06]} Bxc3 {[%emt 0:01:15]} 15. Nxc3 {[%emt 0:02:11]} O-O {[%emt 0:00:15]} 16. Rfb1 {[%emt 0:03:36] Strong Rooks White (b1+b7)} Ne8 {[%emt 0:04:35]} 17. R1b3 {[%emt 0:04:43]} Qe7 {[%emt 0:00:07]} 18. Bg3 {[%emt 0:01:17][%cal Oc3d5]} Nd6 {[%emt 0:02:30]} 19. Ra7 {[%emt 0:02:18]} Ra8 {[%emt 0:01:09]} (19... Nb5 $1 $11 20. Rxa6 Nxc3 21. Rxc3 Qb4) 20. Rc7 {[%emt 0:02:39][%cal Oc3d5] White plays on the queen side and is better} Ne8 {[%emt 0:02:28]} ({Black should play} 20... Rfd8 $1 $14) 21. Rc6 $16 {[%emt 0:01:05] White is much more active.} Ndf6 {[%emt 0:03:06]} 22. Na4 {[%emt 0:06:16] And now Nb6 would win.} Ne4 {[%emt 0:02:12]} 23. Nb6 {[%emt 0:01:53]} Rd8 {[%emt 0:00:38]} 24. Be5 {[%emt 0:02:02]} f6 {[%emt 0:01:14] [#]} 25. Bf4 {[%emt 0:16:44]} (25. Bg3 $1 $16) 25... e5 $14 {[%emt 0:00:25]} 26. Bg3 {[%emt 0:00:00]} (26. Nxd5 Rxd5 27. Qxe4 Qd7 28. Rxa6 exf4 $19) 26... exd4 {[%emt 0:04:15]} 27. exd4 {[%emt 0:00:00]} (27. Nc8 $16 Qd7 28. exd4) 27... Nxg3 {[%emt 0:00:19]} 28. hxg3 {[%emt 0:00:00]} Nd6 {[%emt 0:00:10] Dodges Nc8} (28... f5 $14) 29. Re3 $16 {[%emt 0:00:00]} Qf7 {[%emt 0:00:14]} 30. Rc7 $36 {[%emt 0:00:00][%mdl 2048] Black is under strong pressure.} Qh5 {[%emt 0:00:03] [#]} 31. g4 {[%emt 0:00:00] Prevents Nf5.} Qxg4 {[%emt 0:02:18][%mdl 8192] White has space advantage and is better This move loses the game for Black.} (31... Qg6 $16) 32. Rg3 $18 {[%emt 0:00:00]} ({Not} 32. Nxd5 Kh8 $16) 32... Qxg3 {[%emt 0:00:27]} 33. fxg3 {[%emt 0:00:00]} Nb5 {[%emt 0:00:01]} 34. Re7 {[%emt 0:01:00]} Nxd4 {[%emt 0:00:05]} 35. Qd3 {[%emt 0:00:41]} Nc6 {[%emt 0:00:10]} 36. Rd7 {[%emt 0:01:29]} Ne5 {[%emt 0:03:04]} 37. Qxd5+ {[%emt 0:00:10]} ({Inferior is} 37. Qxa6 Nxd7 38. Nxd5 Rfe8 $17) 37... Nf7 {[%emt 0:00:02]} 38. Qe6 {[%emt 0:00:57]} Rxd7 {[%emt 0:00:37]} 39. Nxd7 {[%emt 0:00:09]} Rd8 {[%emt 0:00:12]} 40. Nc5 {[%emt 0:01:22]} a5 {[%emt 0:00:01]} 41. Nb7 {[%emt 0:50:30]} Rd1+ {[%emt 0:50:11]} 42. Kh2 {[%emt 0:00:17]} Kf8 {[%emt 0:01:14] Wards off Qe8+} 43. Qc8+ {[%emt 0:00:00]} Ke7 {[%emt 0:00:00]} 44. Qc5+ {[%emt 0:00:00]} Ke8 {[%emt 0:00:00]} 45. Qxa5 {[%emt 0:00:00]} Kf8 {[%emt 0:00:00]} 46. Qa8+ {[%emt 0:00:00]} Ke7 {[%emt 0:00:00]} 47. Qa3+ {[%emt 0:00:00]} Ke6 {[%emt 0:00:00]} 48. Qa6+ {[%emt 0:00:00]} Kf5 {[%emt 0:00:00] [#]} 49. g4+ $1 {[%emt 0:00:00] White mates.} Kg5 {[%emt 0:00:00]} 50. Qe2 {[%emt 0:00:00]} Ra1 {[%emt 0:00:00]} 51. Nc5 {[%emt 0:00:00]} Ne5 {[%emt 0:00:00]} 52. Ne4+ {[%emt 0:00:00]} Kg6 {[%emt 0:00:00]} 53. Nd6 {[%emt 0:00:00]} Kg5 {[%emt 0:00:00]} 54. Qe3+ {[%emt 0:00:00]} Kxg4 {[%emt 0:00:00]} 55. Qd4+ {[%emt 0:00:00]} Kh5 {[%emt 0:00:00]} 56. Qxa1 {[%emt 0:00:00]} g5 {[%emt 0:00:00]} 57. Qd1+ {[%emt 0:00:00]} Kh4 {[%emt 0:00:00]} 58. g3# {[%emt 0:00:00] Weighted Error Value: White=0.16 (very precise) /Black=0.35  Loses game:     	---       	Black=1      Mistake:       	White=3     	Black=4      Inaccurate:     	White=1     	Black=2      OK:         	White=13    	Black=8      Best:        	White=4     	Black=6      Strong:       	---       	Black=1} 1-0

[Event "4NCL Div 2 2024-25"]
[Site "England"]
[Date "2025.01.26"]
[Round "4.12"]
[White "Roe, Simon J"]
[Black "Gallana, Marco"]
[Result "0-1"]
[Annotator "TA"]
[ECO "E68"]
[WhiteElo "2145"]
[BlackElo "2216"]
[PlyCount "64"]
[EventDate "2024.11.23"]
[EventType "team-tourn"]
[EventCountry "ENG"]
[SourceTitle "playchess.com"]
[Source "ChessBase"]
[SourceQuality "1"]
[TimeControl "40/6000+30:3000+30"]

{[%evp 25,64,33,43,14,12,22,32,16,0,0,0,0,0,-7,57,62,56,16,16,-125,-127,-357,-350,-381,-366,-377,-379,-772,-781,-778,-785,-781,-712,-775,-722,-1334,-828,-1619,-1610,-2302,-2182]} 1. c4 {[%emt 0:10:04]} Nf6 {[%emt 0:10:39]} 2. Nf3 {[%emt 0:00:08]} g6 {[%emt 0:00:16]} 3. g3 {[%emt 0:00:07]} Bg7 {[%emt 0:00:16]} 4. Bg2 {[%emt 0:00:07]} O-O {[%emt 0:00:28]} 5. Nc3 {[%emt 0:00:16]} d6 {[%emt 0:00:24]} 6. d4 {[%emt 0:00:18]} Nbd7 {[%emt 0:00:25]} 7. O-O {[%emt 0:00:45]} e5 {[%emt 0:00:26]} 8. e4 {[%emt 0:00:08]} exd4 {[%emt 0:00:27]} 9. Nxd4 {[%emt 0:00:07]} Re8 {[%emt 0:00:22]} 10. h3 {[%emt 0:02:40]} Nc5 {[%emt 0:00:49]} 11. Re1 {[%emt 0:02:04]} Bd7 {[%emt 0:00:36]} 12. Rb1 {[%emt 0:07:00]} h6 {[%emt 0:01:42][%cal Bh7h6,Bh6h5,Bh5h4][%mdl 32]} 13. Kh2 {[%emt 0:13:09]} a5 {[%emt 0:03:16]} 14. Ndb5 {[%emt 0:06:39]} a4 {[%emt 0:08:37]} 15. f3 {[%emt 0:10:10]} h5 {[%emt 0:13:19]} 16. Be3 {[%emt 0:03:47] White is slightly better.} h4 {[%emt 0:02:01] White must now prevent ...hxg3+.} 17. g4 {[%emt 0:00:41]} Bxb5 {[%emt 0:01:05]} 18. cxb5 {[%emt 0:00:50]} Nfd7 {[%emt 0:01:56]} 19. Nd5 {[%emt 0:13:35]} Ne5 {[%emt 0:19:57] [#]} (19... c6 $11 20. Nb4 Qa5 (20... cxb5 21. Qe2 $15) 21. bxc6 Qxb4 22. cxd7 Nxd7) 20. b6 $1 $14 {[%emt 0:07:49]} cxb6 {[%emt 0:00:13]} 21. g5 {[%emt 0:05:48]} (21. f4 {simplifies} Nc6 22. Bf2 g5 23. fxg5 Qxg5 24. Nxb6 Rab8 25. Kg1) 21... Nc4 {[%emt 0:08:31]} 22. Bd4 {[%emt 0:08:06]} (22. f4 $11 {keeps the balance.} Nxe3 23. Rxe3) 22... Qxg5 $17 {[%emt 0:02:39]} 23. f4 $2 {[%emt 0:01:54] This costs White the game.} (23. Bxg7 $17 Kxg7 24. Qd4+ Qe5+ 25. Qxe5+ Rxe5 (25... dxe5 26. Nc7 $17) 26. f4 Rxd5 27. exd5) 23... Qg3+ $19 {[%emt 0:00:44]} 24. Kh1 {[%emt 0:00:11] And now Bxg7 would win.} Nd3 {[%emt 0:02:08]} 25. Bg1 {[%emt 0:09:03]} Ncxb2 {[%emt 0:07:44]} ({Weaker is} 25... Qxe1 26. Qxd3 Nxb2 27. Qc2 $11) (25... Nxf4 26. Nxf4 Qxf4 27. b3 axb3 28. axb3 $19) 26. Rxb2 {[%emt 0:01:20]} (26. Qd2 Nxe1 (26... Nc4 $2 27. Qe2 $19) 27. Rxe1) 26... Nxe1 {[%emt 0:00:59] Black is clearly winning.} (26... Bxb2 27. Rf1 Rac8 28. Rf3 $15 (28. Nxb6 $2 {perishes.} Nxf4 29. Qg4 Qxg4 $19)) 27. Bh2 {[%emt 0:04:31]} Qa3 {[%emt 0:00:22]} 28. Re2 {[%emt 0:01:14]} Nxg2 {[%emt 0:01:08]} 29. Kxg2 {[%emt 0:00:05]} Rac8 {[%emt 0:03:35] ...Rc4 would now be deadly.} 30. Qe1 {[%emt 0:00:13]} Qd3 {[%emt 0:01:53] Hoping for ...Rc2.} 31. Re3 {[%emt 0:01:13]} Rc2+ {[%emt 0:00:44]} 32. Kh1 {[%emt 0:00:05] [#]} Rxe4 $3 {[%emt 0:01:53] Weighted Error Value: White=1.28/Black=0.38.  Loses game:     	White=1     	---        Mistake:       	White=2     	Black=1      Inaccurate:     	White=1     	---        OK:         	White=3     	Black=6      Best:        	---       	Black=3      Brilliant:      	White=1     	---} 0-1

[Event "4NCL Div 2 2024-25"]
[Site "England"]
[Date "2025.01.26"]
[Round "4.13"]
[White "Hoffmann, Hendrik"]
[Black "Wafa, Shrook"]
[Result "0-1"]
[Annotator "TA"]
[ECO "B22"]
[WhiteElo "2202"]
[BlackElo "2110"]
[PlyCount "112"]
[EventDate "2024.11.23"]
[EventType "team-tourn"]
[EventCountry "ENG"]
[SourceTitle "playchess.com"]
[Source "ChessBase"]
[SourceQuality "1"]
[TimeControl "40/6000+30:3000+30"]

{[%evp 13,112,36,44,27,39,43,39,26,29,14,12,15,26,18,25,10,16,18,33,27,72,58,68,60,69,0,83,75,83,71,75,73,91,84,83,76,109,59,54,49,53,44,85,97,91,93,83,87,81,43,89,82,58,58,62,25,26,26,31,21,59,49,54,27,22,15,16,13,43,58,39,0,0,0,0,0,0,0,0,0,0,0,0,0,0,0,0,-20,-20,-112,-16,-603,-627,-685,-670,-627,-623,-824,-828,-12826,-12825]} 1. e4 {[%emt 0:10:03]} c5 {[%emt 0:10:17]} 2. c3 {[%emt 0:00:11]} g6 {[%emt 0:00:15]} 3. Nf3 {[%emt 0:00:23]} Bg7 {[%emt 0:00:12]} 4. d4 {[%emt 0:00:44]} cxd4 {[%emt 0:00:11]} 5. cxd4 {[%emt 0:00:07]} d6 {[%emt 0:00:31][%cal Bd7d6,Bd6d5][%mdl 32]} 6. h3 {[%emt 0:00:25]} Nf6 {[%emt 0:00:29]} 7. Nc3 {[%emt 0:00:17]} Nc6 {[%emt 0:00:52][%cal Bb8c6,Bc6a5,Ba5c4][%mdl 32]} 8. Be2 {[%emt 0:02:59] B22: Sicilian: 2 c3.} d5 {[%emt 0:02:35]} 9. e5 {[%emt 0:02:05]} Ne4 {[%emt 0:00:13]} 10. O-O {[%emt 0:01:09] White is slightly better.} O-O {[%emt 0:00:25]} 11. Be3 {[%emt 0:01:48]} Nxc3 {[%emt 0:01:50]} 12. bxc3 {[%emt 0:00:18]} Na5 {[%emt 0:06:04]} 13. Qd2 $146 {[%emt 0:13:40]} (13. Nd2 Bd7 14. f4 Rc8 15. Rc1 Qb6 16. c4 Nxc4 17. Nxc4 dxc4 18. Bxc4 e6 19. Qb3 Qxb3 20. Bxb3 {½-½ Jafarli,B (2020)-Bayramov,E (2302) Mersin op 5th 2021 (6)}) 13... Bd7 {[%emt 0:06:07]} 14. Bh6 {[%emt 0:00:36]} Rc8 {[%emt 0:01:20]} 15. Rfe1 {[%emt 0:05:39]} Nc4 {[%emt 0:10:41]} 16. Qf4 {[%emt 0:02:21]} e6 {[%emt 0:12:17]} 17. Nh2 {[%emt 0:11:30][%cal Bf3h2,Bh2g4,Bg4e5,Be5d7,Bd7c5][%mdl 32] Bxc4 would now be deadly.} f5 {[%emt 0:03:14] White has space advantage and is better} 18. exf6 $1 {[%emt 0:08:36] White attacks} Rxf6 {[%emt 0:00:31]} 19. Qh4 {[%emt 0:00:11]} (19. Qc1 $14) 19... Bxh6 {[%emt 0:03:54]} (19... Rf8 $11 {remains equal.} 20. Bg5 Qa5) 20. Qxh6 $16 {[%emt 0:01:48]} Nd6 {[%emt 0:03:27]} 21. Ng4 {[%emt 0:02:05]} Rf8 {[%emt 0:00:47]} 22. Rac1 {[%emt 0:02:44]} b5 {[%emt 0:05:04]} 23. Bd3 {[%emt 0:03:32]} Qe7 {[%emt 0:05:23]} 24. Qe3 {[%emt 0:05:50]} Qg7 {[%emt 0:04:51]} 25. Qe5 {[%emt 0:05:29]} (25. Ne5 $16) 25... Qxe5 $14 {[%emt 0:05:00]} 26. Nxe5 {[%emt 0:08:17]} Be8 {[%emt 0:00:23]} 27. f3 {[%emt 0:00:14]} Bf7 {[%emt 0:01:38]} 28. Nd7 {[%emt 0:01:29]} Rfd8 {[%emt 0:00:16]} 29. Nc5 {[%emt 0:00:14]} Re8 {[%emt 0:00:24]} 30. Rb1 {[%emt 0:00:30]} a6 {[%emt 0:02:30]} 31. a4 {[%emt 0:02:33]} bxa4 {[%emt 0:02:01][%csl Oa4,Oa6,Oe6] Black has weak pawns} (31... e5 $14 {should be considered.}) 32. Bxa6 $16 {[%emt 0:00:30]} Rc6 {[%emt 0:02:29][%cal Oe6e5]} 33. Ra1 {[%emt 0:03:35]} e5 $1 {[%emt 0:03:04]} 34. Rxa4 {[%emt 0:02:35]} (34. Rxe5 Rxe5 35. dxe5 Nf5 $19) 34... exd4 {[%emt 0:00:42]} 35. Rxe8+ {[%emt 0:00:45]} Bxe8 {[%emt 0:00:14]} 36. cxd4 {[%emt 0:00:08]} Rb6 {[%emt 0:06:00] Wards off Rb4} 37. Ra2 {[%emt 0:02:52]} Rb4 {[%emt 0:03:18]} 38. Rd2 {[%emt 0:01:07]} Nf5 {[%emt 0:00:56]} 39. Ne6 {[%emt 0:03:51]} Bf7 {[%emt 0:00:53]} 40. Bc8 {[%emt 0:00:10]} h5 {[%emt 0:03:14][%cal Bh7h5,Bh5h4][%mdl 32]} 41. Kf2 {[%emt 0:50:58]} h4 {[%emt 0:50:20]} 42. Ke2 {[%emt 0:05:55]} Ne7 {[%emt 0:00:00]} 43. Bd7 {[%emt 0:00:00]} Bxe6 {[%emt 0:00:00]} 44. Bxe6+ $11 {[%emt 0:00:00][%mdl 4096] Endgame KRB-KRN. White is a pawn up.} Kg7 {[%emt 0:00:00]} 45. Kd3 {[%emt 0:00:00]} Kf6 {[%emt 0:00:00]} 46. Bd7 {[%emt 0:00:00]} Rb7 {[%emt 0:00:00]} 47. Be8 {[%emt 0:00:00]} Rb3+ {[%emt 0:00:00]} 48. Kc2 {[%emt 0:00:00]} Rb4 {[%emt 0:00:00]} 49. Bd7 {[%emt 0:00:00]} Rb7 {[%emt 0:00:00]} 50. Be8 {[%emt 0:00:00]} Nf5 {[%emt 0:00:00]} 51. Kd1 {[%emt 0:00:00]} (51. Kc3 $11) 51... Rb4 {[%emt 0:00:00]} ({Black should play} 51... Ne3+ $17 52. Kc1 Rc7+ 53. Kb1 Re7) 52. Bc6 $2 {[%emt 0:00:00][%mdl 8192] This costs White the game.} (52. Ke1 $11) 52... Nxd4 $19 {[%emt 0:00:00][%cal Rb4b1] [#] Black is clearly winning.} ({Weaker is} 52... Rxd4 53. Rxd4 Nxd4 54. Bxd5 $16) 53. Ke1 {[%emt 0:00:00]} Nxc6 {[%emt 0:00:00]} 54. Rxd5 {[%emt 0:00:00]} Ne5 {[%emt 0:00:00]} 55. Rd2 {[%emt 0:00:38]} Kf5 {[%emt 0:00:00]} 56. Kf2 {[%emt 0:01:46] [#]} Rb2 $1 {[%emt 0:00:00][%mdl 512] Weighted Error Value: White=0.45/Black=0.14 (very precise)   Loses game:     	White=1     	---        Mistake:       	White=3     	Black=3      Inaccurate:     	White=4     	Black=5      OK:         	White=19    	Black=22     Best:        	---       	Black=1      Strong:       	White=1     	Black=1} 0-1